bitfinex-derivatives/quotes_BNBF0:USTF0_20260114
["timestamp","ask_amount","ask_price","bid_price","bid_amount"]
[1768377047530,0.7579623,937.19,936.04,2.6637137]
[1768377047828,0.7579623,937.18,936.04,2.6637137]
[1768377048028,0.7579623,937.17,936.04,2.6637137]
[1768377048231,0.7579623,937.16,936.04,2.6637137]
[1768377048428,0.7579623,937.15,936.04,2.6637137]
[1768377048629,0.01118258,938.13,936.04,2.6637137]
[1768377048834,0.75782258,938.12,936.04,2.6637137]
[1768377049031,0.75782258,938.11,936.04,2.6637137]
[1768377049228,0.75782258,938.1,936.04,2.6637137]
[1768377049431,0.75782258,938.09,936.04,2.6637137]
[1768377049630,0.75782258,938.08,936.04,2.6637137]
[1768377049830,0.75782258,938.07,936.04,2.6637137]
[1768377050132,0.75782258,938.06,936.04,2.6637137]
[1768377050332,0.75782258,938.05,936.04,2.6637137]
[1768377050531,0.75782258,938.04,936.04,2.6637137]
[1768377050733,0.75782258,938.03,936.04,2.6637137]
[1768377050932,0.75782258,938.02,936.04,2.6637137]
[1768377051135,0.75782258,938.01,936.04,2.6637137]
[1768377051336,0.18551392,938.38,936.04,2.6637137]
[1768377052537,0.18551392,938.38,936.18,0.18555101]
[1768377111284,0.76139017,938.37,936.18,0.18555101]
[1768377111484,0.76139017,938.36,936.18,0.18555101]
[1768377111782,0.76139017,938.35,936.18,0.18555101]
[1768377111980,0.76139017,938.34,936.18,0.18555101]
[1768377112184,0.76139017,938.33,936.18,0.18555101]
[1768377112381,0.76139017,938.32,936.18,0.18555101]
[1768377112684,0.76139017,938.31,936.18,0.18555101]
[1768377112884,0.76139017,938.3,936.18,0.18555101]
[1768377113083,0.76139017,938.29,936.18,0.18555101]
[1768377113281,0.76139107,938.28,936.18,0.18555101]
[1768377113486,0.76139107,938.27,936.18,0.18555101]
[1768377113782,0.76139107,938.26,936.18,0.18555101]
[1768377113984,0.76139107,938.25,936.18,0.18555101]
[1768377114181,0.76139107,938.24,936.18,0.18555101]
[1768377114382,0.76139107,938.23,936.18,0.18555101]
[1768377114581,0.76139107,938.22,936.18,0.18555101]
[1768377114785,0.76139107,938.21,936.18,0.18555101]
[1768377114982,0.76139107,938.2,936.18,0.18555101]
[1768377115187,0.76139107,938.19,936.18,0.18555101]
[1768377115484,0.76139107,938.18,936.18,0.18555101]
[1768377115687,0.76139107,938.17,936.18,0.18555101]
[1768377115986,0.76139107,938.16,936.18,0.18555101]
[1768377116188,0.76139107,938.15,936.18,0.18555101]
[1768377116384,0.76139107,938.14,936.18,0.18555101]
[1768377116587,0.76139107,938.13,936.18,0.18555101]
[1768377116786,0.76139107,938.12,936.18,0.18555101]
[1768377116988,0.76139107,938.11,936.18,0.18555101]
[1768377117186,0.76139107,938.1,936.18,0.18555101]
[1768377117388,0.76139107,938.09,936.18,0.18555101]
[1768377117585,0.76139107,938.08,936.18,0.18555101]
[1768377117789,0.76139107,938.07,936.18,0.18555101]
[1768377117989,0.76139107,938.06,936.18,0.18555101]
[1768377118185,0.76139107,938.05,936.18,0.18555101]
[1768377118388,0.76139107,938.04,936.18,0.18555101]
[1768377118589,0.76139107,938.03,936.18,0.18555101]
[1768377118787,0.76139107,938.02,936.18,0.18555101]
[1768377118989,0.76139107,938.01,936.18,0.18555101]
[1768377119185,0.76139107,938.0,936.18,0.18555101]
[1768377119490,0.76139107,937.99,936.18,0.18555101]
[1768377119690,0.76139107,937.98,936.18,0.18555101]
[1768377119886,0.76139107,937.97,936.18,0.18555101]
[1768377120090,0.76139107,937.96,936.18,0.18555101]
[1768377120391,0.76139107,937.95,936.18,0.18555101]
[1768377120593,0.18551392,938.38,936.18,0.18555101]
[1768377120594,0.76139107,937.94,936.18,0.18555101]
[1768377120793,0.76139107,937.93,936.18,0.18555101]
[1768377120990,0.76139107,937.92,936.18,0.18555101]
[1768377121294,0.76139107,937.91,936.18,0.18555101]
[1768377121593,0.76139107,937.9,936.18,0.18555101]
[1768377121792,0.76139107,937.89,936.18,0.18555101]
[1768377121989,0.76139107,937.88,936.18,0.18555101]
[1768377122193,0.76139107,937.87,936.18,0.18555101]
[1768377122493,0.76139107,937.86,936.18,0.18555101]
[1768377122691,0.76139107,937.85,936.18,0.18555101]
[1768377122992,0.76139107,937.84,936.18,0.18555101]
[1768377123191,0.76139107,937.83,936.18,0.18555101]
[1768377123393,0.76139107,937.82,936.18,0.18555101]
[1768377123593,0.76139107,937.81,936.18,0.18555101]
[1768377123794,0.76139107,937.8,936.18,0.18555101]
[1768377123992,0.76139107,937.79,936.18,0.18555101]
[1768377124194,0.76139107,937.78,936.18,0.18555101]
[1768377124391,0.18551392,938.38,936.18,0.18555101]
[1768377124392,0.76139107,937.77,936.18,0.18555101]
[1768377124592,0.76139107,937.76,936.18,0.18555101]
[1768377124891,0.76139107,937.75,936.18,0.18555101]
[1768377125094,0.76139107,937.74,936.18,0.18555101]
[1768377125295,0.76139107,937.73,936.18,0.18555101]
[1768377125497,0.76139107,937.72,936.18,0.18555101]
[1768377125795,0.76139107,937.71,936.18,0.18555101]
[1768377125999,0.76139107,937.7,936.18,0.18555101]
[1768377126198,0.76139107,937.69,936.18,0.18555101]
[1768377126394,0.76139107,937.68,936.18,0.18555101]
[1768377126593,0.76139107,937.67,936.18,0.18555101]
[1768377126795,0.76139107,937.66,936.18,0.18555101]
[1768377127094,0.18566684,937.88,936.18,0.18555101]
[1768377127095,0.76139107,937.65,936.18,0.18555101]
[1768377127394,0.76139107,937.64,936.18,0.18555101]
[1768377127595,0.76139107,937.63,936.18,0.18555101]
[1768377127793,0.76139107,937.62,936.18,0.18555101]
[1768377128099,0.76139107,937.61,936.18,0.18555101]
[1768377128397,0.76139107,937.6,936.18,0.18555101]
[1768377128596,0.76139107,937.59,936.18,0.18555101]
[1768377128798,0.76139107,937.58,936.18,0.18555101]
[1768377128995,0.76139107,937.57,936.18,0.18555101]
[1768377129195,0.76139107,937.56,936.18,0.18555101]
[1768377129496,0.76139107,937.55,936.18,0.18555101]
[1768377129797,0.76139107,937.54,936.18,0.18555101]
[1768377129999,0.76139107,937.53,936.18,0.18555101]
[1768377130197,0.76139107,937.52,936.18,0.18555101]
[1768377130397,0.76139107,937.51,936.18,0.18555101]
[1768377130696,0.76139107,937.5,936.18,0.18555101]
[1768377130901,0.76139107,937.49,936.18,0.18555101]
[1768377131101,0.76139107,937.48,936.18,0.18555101]
[1768377131401,0.76139107,937.47,936.18,0.18555101]
[1768377131603,0.76139107,937.46,936.18,0.18555101]
[1768377131901,0.76139107,937.45,936.18,0.18555101]
[1768377132100,0.76139107,937.44,936.18,0.18555101]
[1768377132302,0.76139107,937.43,936.18,0.18555101]
[1768377132502,0.76139107,937.42,936.18,0.18555101]
[1768377132703,0.76139107,937.41,936.18,0.18555101]
[1768377133003,0.76139107,937.4,936.18,0.18555101]
[1768377133203,0.76139107,937.39,936.18,0.18555101]
[1768377133500,0.76139107,937.38,936.18,0.18555101]
[1768377133699,0.76139107,937.37,936.18,0.18555101]
[1768377133903,0.76139107,937.36,936.18,0.18555101]
[1768377134101,0.76139107,937.35,936.18,0.18555101]
[1768377134304,0.76139107,937.34,936.18,0.18555101]
[1768377134601,0.76139107,937.33,936.18,0.18555101]
[1768377134804,0.76139107,937.32,936.18,0.18555101]
[1768377135001,0.76139107,937.31,936.18,0.18555101]
[1768377135202,0.76139107,937.3,936.18,0.18555101]
[1768377135401,0.76139107,937.29,936.18,0.18555101]
[1768377135604,0.76139107,937.28,936.18,0.18555101]
[1768377135806,0.76139107,937.27,936.18,0.18555101]
[1768377136000,0.76139107,937.26,936.18,0.18555101]
[1768377136201,0.76139107,937.25,936.18,0.18555101]
[1768377136405,0.76139107,937.24,936.18,0.18555101]
[1768377136603,0.76139107,937.23,936.18,0.18555101]
[1768377136803,0.76139107,937.22,936.18,0.18555101]
[1768377137008,0.75882292,937.21,936.18,0.18555101]
[1768377137203,0.75882292,937.2,936.18,0.18555101]
[1768377137401,0.75882292,937.19,936.18,0.18555101]
[1768377137607,0.75882292,937.18,936.18,0.18555101]
[1768377137802,0.75882292,937.17,936.18,0.18555101]
[1768377138007,0.75882292,937.16,936.18,0.18555101]
[1768377138204,0.75882292,937.15,936.18,0.18555101]
[1768377138407,0.75882292,937.14,936.18,0.18555101]
[1768377138608,0.75882292,937.13,936.18,0.18555101]
[1768377138907,0.75882292,937.12,936.18,0.18555101]
[1768377139103,0.75873766,937.11,936.18,0.18555101]
[1768377139304,0.75873766,937.1,936.18,0.18555101]
[1768377139510,0.75873766,937.09,936.18,0.18555101]
[1768377139705,0.75873766,937.08,936.18,0.18555101]
[1768377140011,0.75873766,937.07,936.18,0.18555101]
[1768377140209,0.75873766,937.06,936.18,0.18555101]
[1768377140510,0.75873766,937.05,936.18,0.18555101]
[1768377140808,0.75873766,937.04,936.18,0.18555101]
[1768377141009,0.75873766,937.03,936.18,0.18555101]
[1768377141207,0.75873766,937.02,936.18,0.18555101]
[1768377141410,0.7609228,937.01,936.18,0.18555101]
[1768377141610,0.18566684,937.88,936.18,0.18555101]
[1768377141810,0.76092276,937.87,936.18,0.18555101]
[1768377142106,0.76092276,937.86,936.18,0.18555101]
[1768377142306,0.76092276,937.85,936.18,0.18555101]
[1768377142510,0.76092276,937.84,936.18,0.18555101]
[1768377142806,0.76092276,937.83,936.18,0.18555101]
[1768377143006,0.76092276,937.82,936.18,0.18555101]
[1768377143210,0.76092276,937.81,936.18,0.18555101]
[1768377143407,0.76092276,937.8,936.18,0.18555101]
[1768377143611,0.76092276,937.79,936.18,0.18555101]
[1768377143810,0.76092276,937.78,936.18,0.18555101]
[1768377144107,0.76092276,937.77,936.18,0.18555101]
[1768377144407,0.76092276,937.76,936.18,0.18555101]
[1768377144606,0.76092276,937.75,936.18,0.18555101]
[1768377144910,0.76092276,937.74,936.18,0.18555101]
[1768377145107,0.76092276,937.73,936.18,0.18555101]
[1768377145309,0.76092276,937.72,936.18,0.18555101]
[1768377145604,0.76092276,937.71,936.18,0.18555101]
[1768377145805,0.76092276,937.7,936.18,0.18555101]
[1768377146004,0.76092276,937.69,936.18,0.18555101]
[1768377146206,0.76092276,937.68,936.18,0.18555101]
[1768377146407,0.76092276,937.67,936.18,0.18555101]
[1768377146606,0.76092276,937.66,936.18,0.18555101]
[1768377146810,0.76092276,937.65,936.18,0.18555101]
[1768377147011,0.76092276,937.64,936.18,0.18555101]
[1768377147308,0.76092276,937.63,936.18,0.18555101]
[1768377147510,0.76092276,937.62,936.18,0.18555101]
[1768377147706,0.76092276,937.61,936.18,0.18555101]
[1768377148006,0.76092276,937.6,936.18,0.18555101]
[1768377148209,0.76092276,937.59,936.18,0.18555101]
[1768377148411,0.76092276,937.58,936.18,0.18555101]
[1768377148710,0.76092276,937.57,936.18,0.18555101]
[1768377148905,0.76092276,937.56,936.18,0.18555101]
[1768377149110,0.76092276,937.55,936.18,0.18555101]
[1768377149311,0.76092276,937.54,936.18,0.18555101]
[1768377149511,0.76092276,937.53,936.18,0.18555101]
[1768377149713,0.76092276,937.52,936.18,0.18555101]
[1768377149909,0.76092276,937.51,936.18,0.18555101]
[1768377150210,0.76092276,937.5,936.18,0.18555101]
[1768377150412,0.76092276,937.49,936.18,0.18555101]
[1768377150609,0.76092276,937.48,936.18,0.18555101]
[1768377150813,0.76092276,937.47,936.18,0.18555101]
[1768377151113,0.76092276,937.46,936.18,0.18555101]
[1768377151413,0.76092276,937.45,936.18,0.18555101]
[1768377151613,0.76092276,937.44,936.18,0.18555101]
[1768377151808,0.76092276,937.43,936.18,0.18555101]
[1768377152017,0.76092276,937.42,936.18,0.18555101]
[1768377152217,0.76092276,937.41,936.18,0.18555101]
[1768377152415,0.76092276,937.4,936.18,0.18555101]
[1768377152613,0.76092276,937.39,936.18,0.18555101]
[1768377152815,0.76092276,937.38,936.18,0.18555101]
[1768377153014,0.76092276,937.37,936.18,0.18555101]
[1768377153216,0.76092276,937.36,936.18,0.18555101]
[1768377153412,0.76092276,937.35,936.18,0.18555101]
[1768377153619,0.76092276,937.34,936.18,0.18555101]
[1768377153919,0.18566684,937.88,936.18,0.18555101]
[1768377153920,0.76092276,937.33,936.18,0.18555101]
[1768377154115,0.76092276,937.32,936.18,0.18555101]
[1768377154316,0.76092276,937.31,936.18,0.18555101]
[1768377154616,0.76092276,937.3,936.18,0.18555101]
[1768377154815,0.76092276,937.29,936.18,0.18555101]
[1768377155020,0.76092276,937.28,936.18,0.18555101]
[1768377155315,0.76092276,937.27,936.18,0.18555101]
[1768377155520,0.76092276,937.26,936.18,0.18555101]
[1768377155820,0.76092276,937.25,936.18,0.18555101]
[1768377156022,0.76092276,937.24,936.18,0.18555101]
[1768377156222,0.76092276,937.23,936.18,0.18555101]
[1768377156423,0.76092276,937.22,936.18,0.18555101]
[1768377156620,0.76092276,937.21,936.18,0.18555101]
[1768377156819,0.76092276,937.2,936.18,0.18555101]
[1768377157021,0.76092276,937.19,936.18,0.18555101]
[1768377157220,0.76092276,937.18,936.18,0.18555101]
[1768377157420,0.76092276,937.17,936.18,0.18555101]
[1768377157719,0.76092276,937.16,936.18,0.18555101]
[1768377157918,0.76092276,937.15,936.18,0.18555101]
[1768377158118,0.76092276,937.14,936.18,0.18555101]
[1768377158319,0.76092276,937.13,936.18,0.18555101]
[1768377158623,0.76092276,937.12,936.18,0.18555101]
[1768377158824,0.76092276,937.11,936.18,0.18555101]
[1768377159020,0.76092276,937.1,936.18,0.18555101]
[1768377159220,0.76092276,937.09,936.18,0.18555101]
[1768377159420,0.76092276,937.08,936.18,0.18555101]
[1768377159621,0.76092276,937.07,936.18,0.18555101]
[1768377159924,0.76092276,937.06,936.18,0.18555101]
[1768377160123,0.76092276,937.05,936.18,0.18555101]
[1768377160319,0.76092276,937.04,936.18,0.18555101]
[1768377160523,0.76092276,937.03,936.18,0.18555101]
[1768377160822,0.76092276,937.02,936.18,0.18555101]
[1768377161021,0.76092276,937.01,936.18,0.18555101]
[1768377161320,0.76092276,937.0,936.18,0.18555101]
[1768377161524,0.76092276,936.99,936.18,0.18555101]
[1768377161724,0.76092276,936.98,936.18,0.18555101]
[1768377162020,0.76092276,936.97,936.18,0.18555101]
[1768377162222,0.76092276,936.96,936.18,0.18555101]
[1768377162421,0.76092276,936.95,936.18,0.18555101]
[1768377162623,0.76092276,936.94,936.18,0.18555101]
[1768377162824,0.76092276,936.93,936.18,0.18555101]
[1768377163121,0.18566684,937.88,936.18,0.18555101]
[1768377163325,0.76267437,937.87,936.18,0.18555101]
[1768377163621,0.76267437,937.86,936.18,0.18555101]
[1768377163821,0.76267437,937.85,936.18,0.18555101]
[1768377164025,0.76267437,937.84,936.18,0.18555101]
[1768377164222,0.76267437,937.83,936.18,0.18555101]
[1768377164426,0.76267437,937.82,936.18,0.18555101]
[1768377164720,0.76267437,937.81,936.18,0.18555101]
[1768377164924,0.76267437,937.8,936.18,0.18555101]
[1768377165121,0.76267437,937.79,936.18,0.18555101]
[1768377165322,0.76267437,937.78,936.18,0.18555101]
[1768377165622,0.76267437,937.77,936.18,0.18555101]
[1768377165820,0.76267437,937.76,936.18,0.18555101]
[1768377166022,0.76267437,937.75,936.18,0.18555101]
[1768377166226,0.76267437,937.74,936.18,0.18555101]
[1768377166425,0.76267437,937.73,936.18,0.18555101]
[1768377166626,0.76267437,937.72,936.18,0.18555101]
[1768377166826,0.76267437,937.71,936.18,0.18555101]
[1768377167124,0.76267437,937.7,936.18,0.18555101]
[1768377167323,0.76267437,937.69,936.18,0.18555101]
[1768377167626,0.76267437,937.68,936.18,0.18555101]
[1768377167822,0.76267437,937.67,936.18,0.18555101]
[1768377168023,0.76267437,937.66,936.18,0.18555101]
[1768377168223,0.76267437,937.65,936.18,0.18555101]
[1768377168426,0.76267437,937.64,936.18,0.18555101]
[1768377168726,0.76267437,937.63,936.18,0.18555101]
[1768377168925,0.76267437,937.62,936.18,0.18555101]
[1768377169122,0.76267437,937.61,936.18,0.18555101]
[1768377169324,0.76267437,937.6,936.18,0.18555101]
[1768377169528,0.76267437,937.59,936.18,0.18555101]
[1768377169728,0.76267437,937.58,936.18,0.18555101]
[1768377170021,0.18565099,938.03,936.18,0.18555101]
[1768377170022,0.76267437,937.57,936.18,0.18555101]
[1768377170229,0.76267437,937.56,936.18,0.18555101]
[1768377170427,0.76267437,937.55,936.18,0.18555101]
[1768377170727,0.18565099,938.03,936.18,0.18555101]
[1768377170925,0.76297733,938.02,936.18,0.18555101]
[1768377171129,0.76297733,938.01,936.18,0.18555101]
[1768377171326,0.76297733,938.0,936.18,0.18555101]
[1768377171525,0.76297733,937.99,936.18,0.18555101]
[1768377171729,0.76297733,937.98,936.18,0.18555101]
[1768377171929,0.76297733,937.97,936.18,0.18555101]
[1768377172132,0.76297733,937.96,936.18,0.18555101]
[1768377172429,0.76297733,937.95,936.18,0.18555101]
[1768377172626,0.76297733,937.94,936.18,0.18555101]
[1768377172826,0.76297733,937.93,936.18,0.18555101]
[1768377173030,0.76297733,937.92,936.18,0.18555101]
[1768377173227,0.76297733,937.91,936.18,0.18555101]
[1768377173430,0.76297733,937.9,936.18,0.18555101]
[1768377173730,0.76297733,937.89,936.18,0.18555101]
[1768377173928,0.76297733,937.88,936.18,0.18555101]
[1768377174128,0.76297733,937.87,936.18,0.18555101]
[1768377174330,0.76297733,937.86,936.18,0.18555101]
[1768377174530,0.76297733,937.85,936.18,0.18555101]
[1768377174732,0.76297733,937.84,936.18,0.18555101]
[1768377174928,0.76297733,937.83,936.18,0.18555101]
[1768377175134,0.76297733,937.82,936.18,0.18555101]
[1768377175430,0.76297733,937.81,936.18,0.18555101]
[1768377175630,0.76297733,937.8,936.18,0.18555101]
[1768377175832,0.76297733,937.79,936.18,0.18555101]
[1768377176032,0.76297733,937.78,936.18,0.18555101]
[1768377176334,0.76297733,937.77,936.18,0.18555101]
[1768377176532,0.76297733,937.76,936.18,0.18555101]
[1768377176733,0.76297733,937.75,936.18,0.18555101]
[1768377176934,0.76297733,937.74,936.18,0.18555101]
[1768377177133,0.76297733,937.73,936.18,0.18555101]
[1768377177434,0.76297733,937.72,936.18,0.18555101]
[1768377177633,0.76297733,937.71,936.18,0.18555101]
[1768377177834,0.76297733,937.7,936.18,0.18555101]
[1768377178032,0.76297733,937.69,936.18,0.18555101]
[1768377178234,0.76297733,937.68,936.18,0.18555101]
[1768377178434,0.76297733,937.67,936.18,0.18555101]
[1768377178639,0.76297733,937.66,936.18,0.18555101]
[1768377178838,0.76297733,937.65,936.18,0.18555101]
[1768377179138,0.76297733,937.64,936.18,0.18555101]
[1768377179339,0.76297733,937.63,936.18,0.18555101]
[1768377179535,0.76297733,937.62,936.18,0.18555101]
[1768377179836,0.76297733,937.61,936.18,0.18555101]
[1768377180035,0.76297733,937.6,936.18,0.18555101]
[1768377180239,0.76297733,937.59,936.18,0.18555101]
[1768377180534,0.76297733,937.58,936.18,0.18555101]
[1768377180736,0.76297733,937.57,936.18,0.18555101]
[1768377180935,0.76297733,937.56,936.18,0.18555101]
[1768377181233,0.76297733,937.55,936.18,0.18555101]
[1768377181433,0.76297733,937.54,936.18,0.18555101]
[1768377181634,0.76297733,937.53,936.18,0.18555101]
[1768377181936,0.76297733,937.52,936.18,0.18555101]
[1768377182134,0.76297733,937.51,936.18,0.18555101]
[1768377182335,0.76297733,937.5,936.18,0.18555101]
[1768377182535,0.76297733,937.49,936.18,0.18555101]
[1768377182838,0.76297733,937.48,936.18,0.18555101]
[1768377183038,0.76297733,937.47,936.18,0.18555101]
[1768377183239,0.76297733,937.46,936.18,0.18555101]
[1768377183535,0.76297733,937.45,936.18,0.18555101]
[1768377183736,0.76297733,937.44,936.18,0.18555101]
[1768377183940,0.76297733,937.43,936.18,0.18555101]
[1768377184140,0.76297733,937.42,936.18,0.18555101]
[1768377184340,0.76297733,937.41,936.18,0.18555101]
[1768377184638,0.76297733,937.4,936.18,0.18555101]
[1768377184841,0.76297733,937.39,936.18,0.18555101]
[1768377185040,0.76297733,937.38,936.18,0.18555101]
[1768377185241,0.76297733,937.37,936.18,0.18555101]
[1768377185540,0.76297733,937.36,936.18,0.18555101]
[1768377185738,0.76297733,937.35,936.18,0.18555101]
[1768377185939,0.76297733,937.34,936.18,0.18555101]
[1768377186138,0.76297733,937.33,936.18,0.18555101]
[1768377186342,0.76297733,937.32,936.18,0.18555101]
[1768377186539,0.76297733,937.31,936.18,0.18555101]
[1768377186744,0.76297733,937.3,936.18,0.18555101]
[1768377187043,0.76297733,937.29,936.18,0.18555101]
[1768377187240,0.76297733,937.28,936.18,0.18555101]
[1768377187438,0.76297733,937.27,936.18,0.18555101]
[1768377187744,0.18565099,938.03,936.18,0.18555101]
[1768377187745,0.76297733,937.26,936.18,0.18555101]
[1768377187940,0.76297733,937.25,936.18,0.18555101]
[1768377188143,0.76297733,937.24,936.18,0.18555101]
[1768377188343,0.76297733,937.23,936.18,0.18555101]
[1768377188544,0.76297733,937.22,936.18,0.18555101]
[1768377188844,0.76297733,937.21,936.18,0.18555101]
[1768377189144,0.76297733,937.2,936.18,0.18555101]
[1768377189444,0.76297733,937.19,936.18,0.18555101]
[1768377189642,0.76297733,937.18,936.18,0.18555101]
[1768377189841,0.76297733,937.17,936.18,0.18555101]
[1768377190041,0.76297733,937.16,936.18,0.18555101]
[1768377190241,0.76297733,937.15,936.18,0.18555101]
[1768377190545,0.76297733,937.14,936.18,0.18555101]
[1768377190742,0.76297733,937.13,936.18,0.18555101]
[1768377190944,0.76297733,937.12,936.18,0.18555101]
[1768377191144,0.76297733,937.11,936.18,0.18555101]
[1768377191446,0.76297733,937.1,936.18,0.18555101]
[1768377191747,0.76297733,937.09,936.18,0.18555101]
[1768377191946,0.76297733,937.08,936.18,0.18555101]
[1768377192144,0.18565099,938.03,936.18,0.18555101]
[1768377192343,0.76170028,938.02,936.18,0.18555101]
[1768377192649,0.76170028,938.01,936.18,0.18555101]
[1768377192946,0.76171134,938.0,936.18,0.18555101]
[1768377193142,0.76171134,937.99,936.18,0.18555101]
[1768377193346,0.76171134,937.98,936.18,0.18555101]
[1768377193543,0.76171134,937.97,936.18,0.18555101]
[1768377193844,0.76171134,937.96,936.18,0.18555101]
[1768377194047,0.76171134,937.95,936.18,0.18555101]
[1768377194243,0.76171134,937.94,936.18,0.18555101]
[1768377194447,0.76171134,937.93,936.18,0.18555101]
[1768377194743,0.76171134,937.92,936.18,0.18555101]
[1768377195047,0.76171134,937.91,936.18,0.18555101]
[1768377195246,0.76171134,937.9,936.18,0.18555101]
[1768377195444,0.76171134,937.89,936.18,0.18555101]
[1768377195648,0.76171134,937.88,936.18,0.18555101]
[1768377195843,0.76171134,937.87,936.18,0.18555101]
[1768377196048,0.76171134,937.86,936.18,0.18555101]
[1768377196245,0.76171134,937.85,936.18,0.18555101]
[1768377196446,0.76171134,937.84,936.18,0.18555101]
[1768377196746,0.76171134,937.83,936.18,0.18555101]
[1768377196947,0.76171134,937.82,936.18,0.18555101]
[1768377197148,0.76171134,937.81,936.18,0.18555101]
[1768377197349,0.76171134,937.8,936.18,0.18555101]
[1768377197551,0.76171134,937.79,936.18,0.18555101]
[1768377197847,0.76171134,937.78,936.18,0.18555101]
[1768377198051,0.76171134,937.77,936.18,0.18555101]
[1768377198249,0.18565099,938.03,936.18,0.18555101]
[1768377198250,0.76171134,937.76,936.18,0.18555101]
[1768377198448,0.76171134,937.75,936.18,0.18555101]
[1768377198653,0.76171134,937.74,936.18,0.18555101]
[1768377198858,0.76171134,937.73,936.18,0.18555101]
[1768377199047,0.76171134,937.72,936.18,0.18555101]
[1768377199253,0.76171134,937.71,936.18,0.18555101]
[1768377199450,0.76171134,937.7,936.18,0.18555101]
[1768377199654,0.76171134,937.69,936.18,0.18555101]
[1768377199854,0.76171134,937.68,936.18,0.18555101]
[1768377200150,0.76171134,937.67,936.18,0.18555101]
[1768377200355,0.76171134,937.66,936.18,0.18555101]
[1768377200650,0.76171134,937.65,936.18,0.18555101]
[1768377200850,0.76171134,937.64,936.18,0.18555101]
[1768377201055,0.76171134,937.63,936.18,0.18555101]
[1768377201353,0.76171134,937.62,936.18,0.18555101]
[1768377201553,0.76171134,937.61,936.18,0.18555101]
[1768377201751,0.76171134,937.6,936.18,0.18555101]
[1768377201952,0.76171134,937.59,936.18,0.18555101]
[1768377202150,0.76171134,937.58,936.18,0.18555101]
[1768377202355,0.76171134,937.57,936.18,0.18555101]
[1768377202553,0.76171134,937.56,936.18,0.18555101]
[1768377202754,0.76171134,937.55,936.18,0.18555101]
[1768377202956,0.76171134,937.54,936.18,0.18555101]
[1768377203153,0.76171134,937.53,936.18,0.18555101]
[1768377203354,0.76171134,937.52,936.18,0.18555101]
[1768377203554,0.76171134,937.51,936.18,0.18555101]
[1768377203753,0.76171134,937.5,936.18,0.18555101]
[1768377204056,0.76171134,937.49,936.18,0.18555101]
[1768377204253,0.76171134,937.48,936.18,0.18555101]
[1768377204453,0.76171134,937.47,936.18,0.18555101]
[1768377204658,0.76171134,937.46,936.18,0.18555101]
[1768377204852,0.76171134,937.45,936.18,0.18555101]
[1768377205154,0.76171134,937.44,936.18,0.18555101]
[1768377205453,0.76171134,937.43,936.18,0.18555101]
[1768377205658,0.76171134,937.42,936.18,0.18555101]
[1768377205957,0.18565099,938.03,936.18,0.18555101]
[1768377206956,0.76276082,938.02,936.18,0.18555101]
[1768377207257,0.18565099,938.03,936.18,0.18555101]
[1768377208057,0.76288159,938.02,936.18,0.18555101]
[1768377208357,0.76288159,938.01,936.18,0.18555101]
[1768377208557,0.76288159,938.0,936.18,0.18555101]
[1768377208758,0.76288159,937.99,936.18,0.18555101]
[1768377208958,0.76288159,937.98,936.18,0.18555101]
[1768377209157,0.76288159,937.97,936.18,0.18555101]
[1768377209357,0.76288159,937.96,936.18,0.18555101]
[1768377209555,0.76288159,937.95,936.18,0.18555101]
[1768377209760,0.76288159,937.94,936.18,0.18555101]
[1768377209961,0.76288159,937.93,936.18,0.18555101]
[1768377210163,0.76288159,937.92,936.18,0.18555101]
[1768377210462,0.76288159,937.91,936.18,0.18555101]
[1768377210661,0.76288159,937.9,936.18,0.18555101]
[1768377210961,0.76288159,937.89,936.18,0.18555101]
[1768377211257,0.76288159,937.88,936.18,0.18555101]
[1768377211462,0.76288159,937.87,936.18,0.18555101]
[1768377211658,0.76288159,937.86,936.18,0.18555101]
[1768377211958,0.76288159,937.85,936.18,0.18555101]
[1768377212262,0.76288159,937.84,936.18,0.18555101]
[1768377212460,0.76288159,937.83,936.18,0.18555101]
[1768377212656,0.76288159,937.82,936.18,0.18555101]
[1768377212860,0.76288159,937.81,936.18,0.18555101]
[1768377213060,0.76288159,937.8,936.18,0.18555101]
[1768377213260,0.76288159,937.79,936.18,0.18555101]
[1768377213460,0.76288159,937.78,936.18,0.18555101]
[1768377213656,0.76288159,937.77,936.18,0.18555101]
[1768377213858,0.76288159,937.76,936.18,0.18555101]
[1768377214059,0.76288159,937.75,936.18,0.18555101]
[1768377214259,0.76288159,937.74,936.18,0.18555101]
[1768377214457,0.76288159,937.73,936.18,0.18555101]
[1768377214658,0.76288159,937.72,936.18,0.18555101]
[1768377214859,0.76288159,937.71,936.18,0.18555101]
[1768377215062,0.76288159,937.7,936.18,0.18555101]
[1768377215358,0.76288159,937.69,936.18,0.18555101]
[1768377215562,0.76288159,937.68,936.18,0.18555101]
[1768377215757,0.76288159,937.67,936.18,0.18555101]
[1768377216058,0.76288159,937.66,936.18,0.18555101]
[1768377216362,0.76288159,937.65,936.18,0.18555101]
[1768377216659,0.76288159,937.64,936.18,0.18555101]
[1768377216859,0.76288159,937.63,936.18,0.18555101]
[1768377217158,0.76288159,937.62,936.18,0.18555101]
[1768377217357,0.76288159,937.61,936.18,0.18555101]
[1768377217558,0.76288159,937.6,936.18,0.18555101]
[1768377217758,0.76288159,937.59,936.18,0.18555101]
[1768377217962,0.76288159,937.58,936.18,0.18555101]